bitfinex/quotes_ETHUSD_20241030
["timestamp","ask_amount","ask_price","bid_price","bid_amount"]
[1730255973951,0.07786337,2637.4,2637.2,4.07275051]
[1730255974263,0.8303,2637.7,2637.4,3.79156]
[1730255974639,0.07785542,2637.6,2637.4,3.79156]
[1730255974949,0.8303,2637.7,2637.4,3.79156]
[1730255975157,0.07785542,2637.6,2637.4,3.79156]
[1730255976853,0.07785542,2637.6,2637.3,3.79175]
[1730255977036,0.07785542,2637.6,2637.4,0.28058685]
[1730255977872,0.07785542,2637.6,2637.3,4.07233685]
[1730255978167,0.07785542,2637.6,2637.3,0.28058685]
[1730255978384,4.10882451,2637.6,2637.2,0.28058685]
[1730255978671,4.10882451,2637.6,2637.2,3.7919]
[1730255978672,0.31743451,2637.6,2637.2,3.7919]
[1730255978874,0.31743451,2637.6,2637.3,4.62374]
[1730255979168,0.31743451,2637.6,2637.3,4.90432685]
[1730255979371,0.07785542,2637.6,2637.3,1.11258685]
[1730255979539,0.07785542,2637.6,2637.3,4.90423685]
[1730255980582,0.07785542,2637.6,2637.3,4.62365]
[1730255980941,0.07785542,2637.6,2637.3,4.90423685]
[1730255981140,0.07785542,2637.6,2637.3,4.62365]
[1730255981572,0.07785542,2637.6,2637.3,4.90423685]
[1730255981778,0.07785542,2637.6,2637.3,4.62365]
[1730255982778,0.07785542,2637.6,2637.4,3.7916]
[1730255983013,0.07785542,2637.6,2637.5,3.79146]
[1730255983172,0.07785542,2637.6,2637.5,4.94161053]
[1730255983367,0.8303,2637.9,2637.5,4.94161053]
[1730255983368,0.8303,2637.9,2637.6,3.79132]
[1730255983575,0.07792401,2637.8,2637.6,3.79132]
[1730255984202,0.07792401,2637.8,2637.5,0.28058685]
[1730255984409,3.86902401,2637.8,2637.5,0.28058685]
[1730255984574,5.97535546,2637.8,2637.5,0.28058685]
[1730255984774,5.97535546,2637.8,2637.3,0.28058685]
[1730255984775,3.79132,2637.6,2637.3,0.28058685]
[1730255985075,0.07798733,2637.5,2637.3,0.28058685]
[1730255985289,0.07798733,2637.5,2637.1,4.07259685]
[1730255986099,0.07798733,2637.5,2637.1,3.79201]
[1730255986781,0.07798733,2637.5,2637.1,7.58395]
[1730255986982,0.07798733,2637.5,2637.2,0.28058685]
[1730255987188,0.807,2637.4,2637.2,0.28058685]
[1730255987373,0.807,2637.4,2637.1,3.79194]
[1730255987702,0.07793722,2637.3,2637.1,3.79194]
[1730255987906,0.807,2637.4,2637.1,3.79194]
[1730255988109,0.07793722,2637.3,2637.1,7.58386]
[1730255988270,0.807,2637.4,2637.2,0.28042082]
[1730255988471,0.07793722,2637.3,2637.1,0.28042082]
[1730255988678,0.07793722,2637.3,2637.1,3.79203]
[1730255989608,0.07793722,2637.3,2637.1,4.07245082]
[1730255990187,0.07793722,2637.3,2637.2,3.7919]
[1730255990400,0.807,2637.6,2637.2,3.7919]
[1730255990601,0.07786336,2637.3,2637.2,3.7919]
[1730255990835,0.807,2637.6,2637.2,3.7919]
[1730255991028,0.077866,2637.3,2637.2,3.7919]
[1730255991212,0.807,2637.6,2637.2,3.7919]
[1730255991394,0.077866,2637.3,2637.2,4.5681]
[1730255991595,0.807,2637.6,2637.2,4.5681]
[1730255991824,0.07787127,2637.3,2637.1,4.07259154]
[1730255992033,3.79146,2637.5,2637.1,0.28055154]
[1730255992326,3.79146,2637.5,2637.0,0.78525611]
[1730255992534,0.07787127,2637.4,2637.1,0.28061492]
[1730255992734,0.07787127,2637.4,2637.2,0.28061492]
[1730255992896,0.07787127,2637.4,2637.1,0.28061492]
[1730255993098,0.07787127,2637.4,2637.2,0.28061492]
[1730255993807,0.07787127,2637.4,2637.1,0.28061492]
[1730255993993,0.07787127,2637.4,2637.2,0.28061492]
[1730255994193,4.77716705,2637.4,2637.1,0.28061492]
[1730255994495,4.77716705,2637.4,2637.0,0.28061492]
[1730255994700,4.77716705,2637.4,2637.1,0.28061492]
[1730255995138,5.2795355,2637.2,2637.1,0.28061492]
[1730255995302,1.16424998,2637.2,2637.1,0.28061492]
[1730255995507,0.07786072,2637.2,2637.0,0.28061492]
[1730255995752,0.807,2637.3,2637.0,0.28061492]
[1730255995915,0.07782642,2637.2,2637.0,0.28061492]
[1730255996248,0.807,2637.3,2637.0,0.28061492]
[1730255996552,4.59878,2637.3,2637.1,0.28092996]
[1730255996842,5.52857858,2637.3,2637.2,0.28092996]
[1730255997045,5.52857858,2637.3,2636.9,0.28092996]
[1730255997342,5.52857858,2637.3,2637.0,0.28092996]
[1730255997548,5.52857858,2637.3,2637.1,0.28092996]
[1730255997847,4.59878,2637.3,2637.2,0.28092996]
[1730255998053,8.39062,2637.3,2636.9,0.28092996]
[1730255998347,8.39062,2637.3,2637.0,0.28092996]
[1730255998558,4.59878,2637.3,2637.0,0.28092996]
[1730255998719,3.79191,2637.2,2637.1,0.28092996]
[1730255998922,0.807,2637.3,2636.9,0.44888246]
[1730255998923,1.646033,2637.3,2636.9,0.44888246]
[1730255999148,4.59875,2637.3,2637.0,0.28114023]
[1730255999452,4.59875,2637.3,2637.1,0.28114023]
[1730255999947,8.39061,2637.3,2637.1,0.28114023]
[1730256000257,3.7919,2637.2,2637.1,0.28114023]
[1730256000929,3.7919,2637.2,2637.1,0.28112994]
[1730256001329,0.807,2637.3,2637.1,0.28112994]
[1730256001821,4.59875,2637.3,2637.1,0.28112994]
[1730256002014,0.807,2637.3,2637.1,0.28112994]
[1730256002215,3.79162,2637.4,2637.2,0.28112994]
[1730256002444,3.79138,2637.6,2637.3,0.28112994]
[1730256002654,3.79138,2637.6,2637.4,0.28112994]
[1730256002953,3.79138,2637.6,2637.5,0.28112994]
[1730256003254,3.79132,2637.6,2637.5,0.28112994]
[1730256004445,3.86909632,2637.6,2637.5,0.28112994]
[1730256005220,4.8623745,2637.6,2637.5,0.28112994]
[1730256005454,1.0710545,2637.6,2637.3,0.28112994]
[1730256005806,3.79153,2637.5,2637.3,0.28112994]
[1730256006008,3.79153,2637.5,2637.1,1.23507886]
[1730256006009,1.56541182,2637.6,2637.4,0.28112994]
[1730256006296,1.56541182,2637.6,2637.5,0.28112994]
[1730256006297,5.2789555,2637.6,2637.5,0.28112994]
[1730256006597,5.2789555,2637.6,2637.2,0.28112994]
[1730256006770,5.2789555,2637.6,2637.3,0.28112994]
[1730256006967,3.79149,2637.5,2637.4,0.28112994]
[1730256007489,3.79149,2637.5,2637.2,0.28112994]
[1730256007791,6.26447905,2637.6,2637.3,0.28112994]
[1730256007990,3.79161,2637.4,2637.1,0.44982275]
[1730256008191,3.79161,2637.4,2637.2,0.28093123]
[1730256008495,3.79147,2637.5,2637.3,0.28092565]
[1730256008870,3.79147,2637.5,2637.0,9.17216611]
[1730256009085,3.79147,2637.5,2637.0,5.38005611]
[1730256010366,3.79147,2637.5,2637.1,0.44946484]
[1730256010569,0.7849,2637.3,2637.2,0.28092011]
[1730256010797,4.57665,2637.3,2637.2,0.28092011]
[1730256012284,4.57665,2637.3,2637.2,0.28083626]
[1730256013083,4.57665,2637.3,2636.9,1.23459413]
[1730256013084,3.79196,2637.2,2637.0,0.28083626]
[1730256013301,4.77755155,2637.2,2637.0,0.28083626]
[1730256013471,0.98559155,2637.2,2637.0,0.28083626]
[1730256013676,4.57665,2637.3,2637.0,0.28083626]
[1730256014078,4.57665,2637.3,2637.1,0.28083626]
[1730256014565,4.57665,2637.3,2637.2,0.28083626]
[1730256015081,5.16997965,2637.3,2637.2,0.28083626]
[1730256015277,5.16997965,2637.3,2637.0,0.28083626]
[1730256015510,5.16997965,2637.3,2637.1,0.28083626]
[1730256015798,5.16997965,2637.3,2637.2,0.28083626]
[1730256016004,5.16997965,2637.3,2637.2,0.28084709]
[1730256016179,5.78553097,2637.3,2637.2,0.28084709]
[1730256017665,3.792,2637.2,2636.8,0.28084709]
[1730256017899,3.792,2637.2,2636.9,0.28084709]
[1730256018675,3.792,2637.2,2637.0,0.28084709]
[1730256018871,3.79196,2637.2,2637.0,0.28084709]
[1730256019072,5.78553097,2637.3,2637.0,0.28084709]
[1730256019377,0.0778185,2637.2,2637.1,0.28084709]
[1730256019579,9.57741097,2637.3,2637.1,0.28084709]
[1730256019779,0.0778185,2637.2,2637.1,0.28084709]
[1730256019997,9.57741097,2637.3,2636.8,3.79244]
[1730256020207,0.0778185,2637.2,2636.8,3.79244]
[1730256020361,8.96185965,2637.3,2636.8,3.79244]
[1730256020593,0.0778185,2637.2,2636.7,4.57778611]
[1730256020830,3.8697385,2637.2,2636.7,4.57778611]
[1730256021195,0.0778185,2637.2,2637.0,5.2797955]
[1730256021400,0.783,2637.5,2637.0,5.2797955]
[1730256021401,0.783,2637.7,2637.2,3.79178]
[1730256021596,3.86917324,2637.6,2637.1,3.79203]
[1730256021826,3.86917324,2637.6,2637.3,0.28074944]
[1730256022208,3.86917324,2637.6,2637.2,0.28074944]
[1730256022535,3.86917324,2637.6,2637.3,0.28074944]
[1730256022701,0.07781324,2637.6,2637.4,0.28074944]
[1730256022896,0.07781324,2637.6,2637.3,0.28074944]
[1730256023093,3.86916324,2637.6,2637.3,0.28074944]
[1730256023331,3.79161,2637.4,2637.3,0.28074944]
[1730256023510,3.86941532,2637.4,2637.3,0.28074944]
[1730256023707,0.07780532,2637.4,2637.3,0.28074944]
[1730256024811,0.07780532,2637.4,2637.3,0.28077408]
[1730256025016,3.7915,2637.5,2637.3,0.28077408]
[1730256025547,0.07780532,2637.4,2637.0,5.02655925]
[1730256025742,3.7915,2637.5,2637.1,0.28087386]
[1730256025915,3.7915,2637.5,2637.2,0.28087386]
[1730256026115,3.7915,2637.5,2637.3,0.28087386]
[1730256026346,6.0619155,2637.7,2637.4,0.28087386]
[1730256026554,4.57428,2637.7,2637.2,0.28087386]
[1730256026850,3.79142,2637.6,2637.3,0.28087386]
[1730256027047,3.79146,2637.6,2637.4,0.28087386]
[1730256027249,3.79146,2637.6,2637.2,0.28087386]
[1730256027452,3.79146,2637.6,2637.3,0.28087386]
[1730256027617,3.79149,2637.5,2637.4,0.28087386]
[1730256027974,3.79149,2637.5,2637.1,0.28087386]
[1730256028247,3.79149,2637.5,2637.2,0.28087386]
[1730256028457,3.79149,2637.5,2637.3,0.28087386]
[1730256028752,3.79149,2637.5,2637.4,0.28087386]
[1730256028951,3.79149,2637.5,2637.1,0.28087386]
[1730256029127,3.79149,2637.5,2637.2,0.28087386]
[1730256029453,6.66810705,2637.7,2637.2,0.28087386]
[1730256029649,3.79132,2637.6,2637.2,0.28087386]
[1730256030522,3.7915,2637.5,2637.2,0.28087386]
[1730256030721,3.7915,2637.5,2637.3,0.28087386]
[1730256030949,3.7915,2637.5,2637.4,0.28087386]
[1730256031156,3.7915,2637.5,2637.2,0.28087386]
[1730256031457,3.7915,2637.5,2637.4,0.28087386]
[1730256032058,0.783,2637.7,2637.4,0.28087386]
[1730256032258,4.5699,2637.9,2637.4,4.07245386]
[1730256032566,4.5699,2637.9,2637.5,0.28087386]
[1730256032767,7.58139,2638.1,2637.6,4.82627386]
[1730256032981,3.7906,2638.1,2637.6,4.5454]
[1730256033128,3.7906,2638.1,2637.6,4.54534]
[1730256033326,7.58132,2638.1,2637.6,4.54534]
[1730256033528,3.7906,2638.1,2637.6,4.54534]
[1730256033764,7.58132,2638.1,2637.6,4.54534]
[1730256034058,3.7906,2638.1,2637.6,4.54534]
[1730256034262,7.58131,2638.1,2637.6,4.54534]
[1730256034567,3.90775122,2638.0,2637.6,0.7541]
[1730256035332,3.7909,2637.9,2637.4,3.79153]
[1730256035532,0.11704926,2637.8,2637.4,8.33716]
[1730256037155,0.11704926,2637.8,2637.4,4.54563]
[1730256037542,0.11704926,2637.8,2637.4,8.33717]
[1730256037744,0.11704926,2637.8,2637.4,9.53446519]
[1730256038244,0.11704926,2637.8,2637.4,5.74292519]
[1730256038467,0.11704926,2637.8,2637.4,9.53445519]
[1730256038671,0.11704926,2637.8,2637.4,5.74292519]
[1730256038970,0.11704926,2637.8,2637.4,9.53444519]
[1730256039354,0.11704926,2637.8,2637.4,5.74291519]
[1730256039551,0.11704926,2637.8,2637.5,3.79144]
[1730256041065,0.11704926,2637.8,2637.4,5.74299519]
[1730256041261,5.2789155,2637.7,2637.2,5.33114611]
[1730256041572,3.90842728,2637.6,2637.2,4.54589]
[1730256043899,0.11710728,2637.6,2637.2,4.54589]
[1730256046456,0.11710728,2637.6,2637.2,8.3377]
[1730256046695,0.8269,2637.5,2637.1,0.78525611]
[1730256046916,0.11710728,2637.6,2637.0,0.37422461]
[1730256046917,4.6188,2637.2,2637.0,0.37422461]
[1730256047211,0.11702025,2637.1,2637.0,0.37422461]
[1730256047794,0.11702025,2637.1,2636.7,1.56075611]
[1730256047965,0.11702025,2637.1,2636.8,3.79246]
[1730256050710,0.11702025,2637.1,2636.7,1.56075611]
[1730256051007,3.90914025,2637.1,2636.7,1.56075611]
[1730256051310,3.90914025,2637.1,2636.7,4.56809]
[1730256051612,3.79212,2637.1,2636.7,4.56809]
[1730256053421,3.79219,2637.0,2636.5,5.72779072]
[1730256053715,4.254022,2637.1,2636.6,3.79274]
[1730256053716,0.11697805,2636.9,2636.6,3.79274]
[1730256054211,0.11689363,2636.8,2636.5,1.56075611]
[1730256054418,3.79219,2637.0,2636.5,5.35351611]
[1730256054589,0.11689363,2636.9,2636.5,9.14633611]
[1730256054789,0.11689363,2636.9,2636.5,5.35351611]
[1730256056126,0.11689363,2636.9,2636.5,4.56826]
[1730256056834,4.73620363,2636.9,2636.4,0.78525611]
[1730256056997,4.73620363,2636.9,2636.4,3.79304]
[1730256057734,8.52863363,2636.9,2636.4,3.79304]
[1730256057887,4.73620363,2636.9,2636.4,3.79304]
[1730256058093,3.79259,2636.8,2636.3,4.5686]
[1730256058531,0.11677226,2636.7,2636.3,4.5686]
[1730256058891,3.79259,2636.8,2636.3,4.5686]
[1730256059092,0.11677226,2636.6,2636.3,4.5686]
[1730256059295,0.11677226,2636.6,2636.3,3.7931]
[1730256059521,3.79264,2636.7,2636.1,5.35416611]
[1730256059722,0.11677226,2636.5,2636.1,5.35416611]
[1730256059929,4.6197,2636.6,2636.1,5.35416611]
[1730256060099,0.11677226,2636.4,2636.1,5.35416611]
[1730256060293,1.668134,2636.6,2636.0,1.15964053]
[1730256060499,0.11677226,2636.3,2636.0,1.15964053]
[1730256060720,5.460914,2636.6,2636.0,0.37438442]
[1730256060721,3.79299,2636.5,2636.0,0.37438442]
[1730256061335,0.11669046,2636.4,2635.9,9.54429053]
[1730256061632,3.79299,2636.5,2635.9,5.75060053]
[1730256061846,0.11669046,2636.4,2636.0,3.79361]
[1730256062021,3.79299,2636.5,2636.0,3.79361]
[1730256062339,3.79256,2636.8,2636.2,0.7973]
[1730256062543,3.79256,2636.8,2636.2,4.5905]
[1730256062748,3.79256,2636.8,2636.3,3.79315]
[1730256062749,0.11659019,2636.7,2636.3,3.79315]
[1730256062955,0.11659019,2636.7,2636.4,3.79303]
[1730256063253,0.11659019,2636.6,2636.3,5.28501287]
[1730256063845,0.11659019,2636.5,2636.2,4.5905]
[1730256064158,4.59963,2636.9,2636.2,3.7932]
[1730256064159,0.8073,2636.6,2636.2,3.7932]
[1730256064309,0.11659019,2636.4,2636.2,3.7932]
[1730256064509,0.8073,2636.6,2636.2,3.7932]
[1730256064806,0.11659019,2636.3,2636.2,3.7932]
[1730256065007,0.8073,2636.6,2636.2,3.7932]
[1730256065218,0.11659019,2636.5,2636.1,3.79347]
[1730256065423,4.38125221,2636.5,2635.9,0.78525611]
[1730256065744,4.38125221,2636.5,2635.7,4.96084448]
[1730256065745,3.79341,2636.2,2635.7,0.78498353]
[1730256065947,4.60071,2636.2,2635.7,0.78498353]
[1730256066152,4.60071,2636.2,2635.7,5.28577287]
[1730256066448,0.11659019,2636.1,2635.7,3.79395]
[1730256067014,0.11659019,2636.1,2635.8,3.79383]
[1730256067422,0.11659019,2636.1,2635.7,3.79395]
[1730256069457,0.11659019,2636.1,2635.8,3.79384]
[1730256069753,0.11659019,2636.1,2635.7,4.632501]
[1730256069940,0.11659019,2636.1,2635.8,3.79389]
[1730256070337,0.11659019,2636.1,2635.7,4.632501]
[1730256070726,0.11659019,2636.1,2635.8,3.79383]
[1730256071444,0.11659019,2636.1,2635.7,4.632501]
[1730256072120,4.60064,2636.2,2635.7,4.632501]
[1730256072333,0.11646612,2636.0,2635.7,3.79395]
[1730256072515,4.60064,2636.2,2635.7,3.79395]
[1730256073015,0.11634733,2636.1,2635.7,3.79395]
[1730256077249,0.11634733,2636.1,2635.8,3.79391]
[1730256078539,0.11634733,2636.1,2635.7,3.79395]
[1730256078765,0.11634733,2636.1,2635.7,7.58794]
[1730256079074,0.11634733,2636.1,2635.7,3.79395]
[1730256079480,0.11634733,2636.1,2635.6,0.7973]
[1730256079481,3.90984733,2636.1,2635.6,0.7973]
[1730256080071,3.90989733,2636.1,2635.6,0.7973]
[1730256080275,3.90989733,2636.1,2635.6,4.59142]
[1730256080636,3.90989733,2636.1,2635.6,3.79412]
[1730256080839,3.79365,2636.0,2635.6,3.79412]
[1730256081070,0.11631038,2635.9,2635.6,3.79412]
[1730256081475,0.11631038,2635.9,2635.4,4.59177]
[1730256081640,0.8073,2635.8,2635.5,3.79434]
[1730256082055,0.11631038,2635.7,2635.5,3.79434]
[1730256082341,0.8073,2635.8,2635.5,3.79434]
[1730256082542,0.11631038,2635.6,2635.5,3.79434]
[1730256082743,0.8073,2635.8,2635.5,3.79434]
[1730256082973,0.11631038,2635.6,2635.1,4.13225735]
[1730256083174,0.8073,2635.8,2635.3,3.79456]
[1730256083175,5.061385,2635.8,2635.3,3.79456]
[1730256083776,0.11626814,2635.7,2635.3,3.79456]
[1730256083962,5.061385,2635.8,2635.3,3.79456]
[1730256084170,0.11626814,2635.6,2635.3,3.79456]
[1730256084354,8.855435,2635.8,2635.3,3.79456]
[1730256084545,0.11626814,2635.5,2635.3,3.79456]
[1730256084744,3.79406,2635.7,2635.3,3.79456]
[1730256085275,0.11626814,2635.6,2635.3,3.79456]
[1730256086950,8.855385,2635.8,2635.3,3.79456]
[1730256087153,0.11620212,2635.5,2635.3,3.79456]
[1730256087371,8.39529,2635.8,2635.3,3.79456]
[1730256087573,0.11620212,2635.4,2635.3,3.79456]
[1730256088104,8.39529,2635.8,2635.3,3.79456]
[1730256088253,0.11620212,2635.4,2635.3,3.79456]
[1730256088455,8.39529,2635.8,2635.3,3.79456]
[1730256088652,0.11620212,2635.7,2635.3,3.79456]
[1730256088874,8.39529,2635.8,2635.3,3.79456]
[1730256089156,0.95573112,2635.7,2635.3,3.79456]
[1730256089373,0.11620212,2635.7,2635.3,3.79456]
[1730256089553,4.60129,2635.8,2635.3,3.79456]
[1730256089756,0.11620212,2635.6,2635.3,3.79456]
[1730256090054,0.11620212,2635.5,2635.3,3.79456]
[1730256090384,4.60129,2635.8,2635.3,3.79456]
[1730256090594,0.11620212,2635.4,2635.3,3.79456]
[1730256090753,8.39529,2635.8,2635.3,3.79456]
[1730256090954,0.11620212,2635.4,2635.3,3.79456]
[1730256091671,4.60129,2635.8,2635.3,3.79456]
[1730256091891,0.11609122,2635.7,2635.3,3.79456]
[1730256092062,4.60129,2635.8,2635.3,3.79456]
[1730256092265,5.2868312,2636.0,2635.6,5.2873012]
[1730256092266,0.11609122,2635.7,2635.6,5.2873012]
[1730256092465,0.11609122,2635.7,2635.6,5.81603132]
[1730256092659,4.58803,2636.2,2635.7,3.79393]
[1730256092877,0.11607537,2636.1,2635.7,3.79393]
[1730256093194,0.11607537,2636.1,2635.8,5.2869512]
[1730256093392,0.11607537,2636.1,2635.8,2.3007112]
[1730256093803,0.11607537,2636.1,2635.8,2.58103782]
[1730256095060,0.11607537,2636.1,2635.8,2.3007112]
[1730256095255,0.11607537,2636.1,2635.8,6.0945812]
[1730256095691,0.11607537,2636.1,2635.9,0.28039852]
[1730256096465,0.11607537,2636.1,2635.8,0.8076]
[1730256097491,0.11607537,2636.1,2635.8,1.08799852]
[1730256097978,0.11607537,2636.1,2635.8,0.8076]
[1730256098498,0.11607537,2636.1,2635.8,4.60149]
[1730256098666,0.11607537,2636.1,2635.8,0.8076]
[1730256098862,0.11607537,2636.1,2635.8,1.08799852]
[1730256100402,0.11607537,2636.1,2635.9,0.28039852]
[1730256101197,0.11607537,2636.1,2636.0,0.28039852]
[1730256101394,0.11607537,2636.1,2635.9,0.28039852]
[1730256101698,0.11607537,2636.1,2636.0,0.28039852]
[1730256101997,0.11607537,2636.1,2635.9,0.28039852]
[1730256102204,0.11607537,2636.1,2636.0,0.28039852]
[1730256102401,0.11607537,2636.1,2635.8,0.8076]
[1730256102587,0.11607537,2636.1,2635.9,0.28098747]
[1730256102908,0.11607537,2636.1,2636.0,0.28098747]
[1730256103066,0.11607537,2636.1,2635.9,0.28098747]
[1730256103267,0.11607537,2636.1,2636.0,0.28098747]
[1730256104772,3.79337,2636.2,2636.0,0.28098747]
[1730256104988,0.11236449,2636.1,2635.8,0.8076]
[1730256105190,0.11236449,2636.1,2635.9,0.28107725]
[1730256105402,0.11236449,2636.1,2636.0,0.28107725]
[1730256105996,7.58647,2636.3,2636.0,0.28107725]
[1730256106175,0.11236449,2636.1,2635.8,5.05108995]
[1730256106378,3.79334,2636.2,2635.9,0.2811411]
[1730256106607,0.11236449,2636.0,2635.9,0.2811411]
[1730256106760,3.79334,2636.2,2635.9,0.2811411]
[1730256106964,0.11236449,2636.0,2635.8,1.25717995]
[1730256107202,3.79319,2636.3,2635.9,0.28114968]
[1730256107379,4.631268,2636.3,2636.0,0.28114968]
[1730256107576,3.79335,2636.2,2636.1,0.28114968]
[1730256107876,3.79335,2636.2,2635.5,5.34475091]
[1730256107877,3.79463,2635.3,2635.2,0.78525611]
[1730256108112,3.79463,2635.3,2634.8,1.96865937]
[1730256108113,5.2877512,2635.3,2634.8,1.58105611]
[1730256108294,5.2877512,2635.3,2634.8,4.59115]
[1730256108467,1.4931112,2635.3,2634.8,0.7958]
[1730256108668,5.2877712,2635.3,2634.8,4.59114]
[1730256109397,5.2877712,2635.3,2634.8,0.7958]
[1730256109603,0.10836761,2635.2,2634.8,0.7958]
[1730256110087,0.10836761,2635.1,2634.8,0.7958]
[1730256110371,5.2877712,2635.3,2634.8,0.7958]
[1730256110593,0.10836761,2635.0,2634.8,0.7958]
[1730256110791,5.2877712,2635.3,2634.8,0.7958]
[1730256111107,3.79481,2635.2,2634.8,0.7958]
[1730256111275,0.10836761,2635.1,2634.8,4.59113]
[1730256111603,3.79478,2635.2,2634.8,0.7958]
[1730256111767,3.79478,2635.2,2634.8,4.59114]
[1730256111768,0.10836761,2635.0,2634.8,4.59114]
[1730256112114,0.10836761,2634.9,2634.8,0.7958]
[1730256112495,3.79478,2635.2,2634.8,0.7958]
[1730256112692,0.10836497,2635.1,2634.8,0.7958]
[1730256113008,3.79484,2635.2,2634.8,0.7958]
[1730256113173,0.10836497,2635.0,2634.8,0.7958]
[1730256113372,3.79484,2635.2,2634.8,0.7958]
[1730256113886,0.10836497,2635.1,2634.8,0.7958]
[1730256115722,1.4931112,2635.3,2634.8,4.59105]
[1730256115924,0.1082276,2635.0,2634.8,4.59105]
[1730256116214,5.2877512,2635.3,2634.8,4.59105]
[1730256116419,0.10822496,2634.9,2634.8,4.59105]
[1730256116918,3.79479,2635.2,2634.8,0.7958]
[1730256117127,0.10822496,2634.9,2634.8,0.7958]
[1730256117416,5.2878412,2635.3,2634.8,0.7958]
[1730256117617,5.2878412,2635.3,2634.8,4.59113]
[1730256117826,0.10822496,2635.2,2634.8,4.59113]
[1730256118145,5.2878412,2635.3,2634.8,4.59113]
[1730256118325,0.10822496,2635.1,2634.8,4.59113]
[1730256118625,1.4931112,2635.3,2634.9,3.79519]
[1730256118793,0.10822496,2635.0,2634.9,3.79519]
[1730256118996,7.58802,2635.8,2635.2,3.79468]
[1730256119219,7.58802,2635.8,2635.1,3.79482]
[1730256119220,3.79401,2635.8,2635.3,3.79463]
[1730256119393,3.79401,2635.8,2635.4,0.7958]
[1730256119394,7.58803,2635.8,2635.4,0.7958]
[1730256120106,5.2871912,2635.7,2635.4,0.7958]
[1730256120313,9.0813412,2635.7,2635.4,0.7958]
[1730256120687,5.2871912,2635.7,2635.4,0.7958]
[1730256121223,1.4931112,2635.7,2635.4,0.7958]
[1730256121388,5.2872212,2635.7,2635.4,0.7958]
[1730256124300,3.79411,2635.7,2635.4,0.7958]
[1730256124512,0.10465793,2635.6,2635.4,0.7958]
[1730256124821,0.10465793,2635.6,2635.2,3.79476]
[1730256124822,3.79435,2635.5,2635.2,0.8114]
[1730256125023,0.10465793,2635.6,2635.2,0.8114]
[1730256125227,0.10473191,2635.4,2635.2,0.8114]
[1730256125432,4.78326812,2635.7,2635.2,0.8114]
[1730256125607,0.10473191,2635.3,2635.2,0.8114]
[1730256126224,4.78326812,2635.7,2635.2,0.8114]
[1730256126424,0.10473191,2635.3,2635.2,0.8114]
[1730256126729,0.10473191,2635.3,2635.2,4.60617]
[1730256126895,3.79416,2635.7,2635.2,4.60617]
[1730256127096,0.10473191,2635.6,2635.2,4.60617]
[1730256131117,0.10473191,2635.6,2635.3,3.79455]
[1730256131319,3.79406,2635.7,2635.3,0.28130436]
[1730256131499,0.10472135,2635.6,2635.3,0.28130436]
[1730256131716,0.10472135,2635.6,2635.2,4.6061]
[1730256137328,0.10472135,2635.6,2635.3,3.79462]
[1730256137650,3.79408,2635.7,2635.3,0.28130436]
[1730256137855,0.10475831,2635.5,2635.2,4.6061]
[1730256138017,3.79408,2635.7,2635.2,4.6061]
[1730256138217,0.10475831,2635.4,2635.2,4.60609]
[1730256138551,3.79405,2635.7,2635.3,3.79463]
[1730256138767,5.89681332,2635.8,2635.3,7.58926]
[1730256139060,5.89681332,2635.8,2635.3,3.79454]
[1730256139414,3.01,2636.4,2635.3,3.79454]
[1730256139415,0.10480586,2635.7,2635.6,4.6184]
[1730256139747,4.61092,2636.4,2635.8,3.7938]
[1730256139748,8.40405,2636.4,2635.8,3.7938]
[1730256139948,6.1040312,2636.4,2635.8,3.7938]
[1730256140152,0.09441144,2636.3,2635.8,3.7938]
[1730256141456,0.09441144,2636.3,2635.8,4.07505925]
[1730256141750,3.88760144,2636.3,2635.8,4.07487665]
[1730256142123,3.88760144,2636.3,2635.8,4.07487681]
[1730256142525,2.3109112,2636.0,2635.8,0.28107681]
[1730256142842,2.3109112,2636.0,2635.4,0.28107681]
[1730256142843,3.79407,2635.7,2635.4,0.28107681]
[1730256143042,5.2871812,2635.7,2635.2,4.61897]
[1730256143423,0.09466624,2635.6,2635.2,4.61897]
[1730256145428,0.09466624,2635.6,2635.2,8.41367]
[1730256145833,0.09466624,2635.6,2635.3,3.79456]
[1730256146036,0.09466624,2635.6,2635.3,4.07588522]
[1730256146247,3.79393,2635.8,2635.3,4.07588522]
[1730256146441,0.09446984,2635.5,2635.3,4.07588522]
[1730256146654,3.79393,2635.8,2635.3,4.07588522]
[1730256146842,0.09446984,2635.4,2635.3,4.07588522]
[1730256147358,3.79393,2635.8,2635.3,4.07588522]
[1730256147556,0.09446984,2635.4,2635.3,4.07588522]
[1730256147760,3.79393,2635.8,2635.3,4.07588522]
[1730256147937,0.09446984,2635.4,2635.3,4.07588522]
[1730256148261,3.79393,2635.8,2635.3,4.07588522]
[1730256148556,4.634489,2635.8,2635.3,4.07588522]
[1730256148762,0.09446984,2635.7,2635.3,4.07588522]
[1730256149133,4.634489,2635.8,2635.3,4.07588522]
[1730256149335,0.09448046,2635.7,2635.3,4.07588522]
[1730256149538,4.634489,2635.8,2635.3,4.07588522]
[1730256149750,0.09448046,2635.7,2635.3,4.07588522]
[1730256150135,4.634489,2635.8,2635.3,4.07588522]
[1730256150347,0.93731536,2635.7,2635.3,4.07588522]
[1730256150673,3.79421,2635.6,2635.3,0.28132522]
[1730256150961,4.73136536,2635.7,2635.3,0.28132522]
[1730256150962,0.0944778,2635.5,2635.3,0.28132522]
[1730256151571,0.0944778,2635.4,2635.3,0.28132522]
[1730256151954,3.79427,2635.6,2635.3,0.28132522]
[1730256152152,0.0944778,2635.4,2635.3,0.28132522]
[1730256152366,8.38987,2635.7,2635.3,0.28132522]
[1730256152560,0.0944778,2635.4,2635.3,0.28132522]
[1730256153104,0.0944778,2635.4,2635.2,0.8242]
[1730256153265,0.0944778,2635.3,2635.2,0.8242]
[1730256153589,3.7942,2635.6,2635.2,0.8242]
[1730256153762,0.0944778,2635.3,2635.2,1.60945611]
[1730256153963,3.7942,2635.6,2635.2,1.60945611]
[1730256154162,0.0944778,2635.3,2635.2,2.06001648]
[1730256154383,3.7942,2635.6,2635.2,2.06001648]
[1730256154554,0.0944778,2635.3,2635.2,2.06001648]
[1730256154754,3.7942,2635.6,2635.2,2.06001648]
[1730256154946,0.0944778,2635.3,2635.2,2.06001648]
[1730256155151,3.7942,2635.6,2635.2,2.06001648]
[1730256155386,0.0944778,2635.3,2635.2,2.06001648]
[1730256155554,3.7942,2635.6,2635.2,2.06001648]